lending/lending_fUSD_20240411
["ID","MTS","AMOUNT","RATE_DAILY","PERIOD"]
[322127617,1712823042244,-157.041114,0.00031448,11]
[322127618,1712823042255,-4519.9733043,0.00031458,2]
[322127619,1712823042265,-525.0,0.0003148,2]
[322127620,1712823042274,-1000.0,0.00031507,30]
[322127621,1712823042283,-1000.0,0.00031507,30]
[322127622,1712823042293,-1000.0,0.00031507,30]
[322127623,1712823042302,-1000.0,0.00031507,30]
[322127624,1712823042311,-1000.0,0.00031507,30]
[322127625,1712823042320,-1000.0,0.00031507,30]
[322127626,1712823042329,-1000.0,0.00031507,30]
[322127627,1712823042338,-1000.0,0.00031507,30]
[322127628,1712823042347,-1000.0,0.00031507,30]
[322127629,1712823042356,-1000.0,0.00031507,30]
[322127630,1712823042366,-1000.0,0.00031507,30]
[322127631,1712823042375,-1000.0,0.00031507,30]
[322127632,1712823042387,-1000.0,0.00031507,30]
[322127633,1712823042396,-1000.0,0.00031507,30]
[322127634,1712823042406,-1000.0,0.00031507,30]
[322127635,1712823042416,-1369.54622527,0.00031507,30]
[322127636,1712823042425,-166.91198249,0.00031533,7]
[322127637,1712823042435,-161.95655027,0.00031655,7]
[322127638,1712823042443,-157.21377487,0.00031744,7]
[322127639,1712823042452,-154.36695506,0.00031746,7]
[322127640,1712823042461,-152.00108288,0.00031748,7]
[322127641,1712823042471,-284.77502225,0.00031812,7]
[322127642,1712823042481,-500.0,0.00031821,2]
[322127643,1712823042490,-500.0,0.00031821,2]
[322127644,1712823042499,-500.0,0.00031821,2]
[322127645,1712823042509,-500.0,0.00031821,2]
[322127646,1712823042518,-500.0,0.00031821,2]
[322127647,1712823042528,-500.0,0.00031821,2]
[322127648,1712823042537,-500.0,0.00031821,2]
[322127649,1712823042546,-500.0,0.00031821,2]
[322127650,1712823042555,-500.0,0.00031821,2]
[322127651,1712823042564,-500.0,0.00031821,2]
[322127652,1712823042573,-500.0,0.00031821,2]
[322127653,1712823042582,-500.0,0.00031821,2]
[322127654,1712823042590,-500.0,0.00031821,2]
[322127655,1712823042599,-500.0,0.00031821,2]
[322127656,1712823042608,-500.0,0.00031821,2]
[322127657,1712823042617,-500.0,0.00031821,2]
[322127658,1712823042626,-500.0,0.00031821,2]
[322127659,1712823042638,-500.0,0.00031821,2]
[322127660,1712823042647,-500.0,0.00031821,2]
[322127661,1712823042656,-500.0,0.00031821,2]
[322127662,1712823042665,-500.0,0.00031821,2]
[322127663,1712823042674,-500.0,0.00031821,2]
[322127664,1712823042683,-500.0,0.00031821,2]
[322127665,1712823042692,-500.0,0.00031821,2]
[322127666,1712823042701,-500.0,0.00031821,2]
[322127667,1712823042710,-500.0,0.00031821,2]
[322127668,1712823042719,-500.0,0.00031821,2]
[322127669,1712823042728,-500.0,0.00031821,2]
[322127670,1712823042736,-500.0,0.00031821,2]
[322127671,1712823042746,-500.0,0.00031821,2]
[322127672,1712823042755,-500.0,0.00031821,2]
[322127673,1712823042764,-500.0,0.00031821,2]
[322127674,1712823042773,-500.0,0.00031821,2]
[322127675,1712823042781,-500.0,0.00031821,2]
[322127676,1712823042790,-500.0,0.00031821,2]
[322127677,1712823042799,-500.0,0.00031821,2]
[322127678,1712823042808,-500.0,0.00031821,2]
[322127679,1712823042817,-500.0,0.00031821,2]
[322127680,1712823042826,-500.0,0.00031821,2]
[322127681,1712823042835,-500.0,0.00031821,2]
[322127682,1712823042844,-500.0,0.00031821,2]
[322127683,1712823042853,-500.0,0.00031821,2]
[322127684,1712823042862,-500.0,0.00031821,2]
[322127685,1712823042871,-352.83,0.00031821,2]
[322127686,1712823042885,-500.0,0.00031821,2]
[322127687,1712823042894,-500.0,0.00031821,2]
[322127688,1712823042903,-500.0,0.00031821,2]
[322127689,1712823042912,-500.0,0.00031821,2]
[322127690,1712823042922,-500.0,0.00031821,2]
[322127691,1712823042931,-500.0,0.00031821,2]
[322127692,1712823042941,-500.0,0.00031821,2]
[322127693,1712823042950,-500.0,0.00031821,2]
[322127694,1712823042963,-500.0,0.00031821,2]
[322127695,1712823042973,-500.0,0.00031821,2]
[322127696,1712823042983,-500.0,0.00031821,2]
[322127697,1712823042992,-500.0,0.00031821,2]
[322127698,1712823043001,-500.0,0.00031821,2]
[322127699,1712823043010,-500.0,0.00031821,2]
[322127700,1712823043021,-500.0,0.00031821,2]
[322127702,1712823043030,-500.0,0.00031821,2]
[322127704,1712823043040,-566.06,0.00031821,2]
[322127706,1712823043049,-500.0,0.00031821,2]
[322127708,1712823043059,-500.0,0.00031821,2]
[322127710,1712823043068,-500.0,0.00031821,2]
[322127711,1712823043078,-500.0,0.00031821,2]
[322127713,1712823043087,-500.0,0.00031821,2]
[322127715,1712823043097,-500.0,0.00031821,2]
[322127717,1712823043107,-522.72,0.00031821,2]
[322127718,1712823043116,-1000.0,0.00031852,2]
[322127719,1712823043127,-284.77502225,0.00031875,7]
[322127721,1712823043137,-173.82299037,0.0003189,30]
[322127723,1712823043147,-500.0,0.00031916,2]
[322127725,1712823043157,-500.0,0.00031916,2]
[322127726,1712823043167,-500.0,0.00031916,2]
[322127727,1712823043176,-500.0,0.00031916,2]
[322127728,1712823043187,-500.0,0.00031916,2]
[322127730,1712823043197,-500.0,0.00031916,2]
[322127731,1712823043207,-454.11,0.00031916,2]
[322127733,1712823043216,-3849.2440112,0.00031978,2]
[322127735,1712823043226,-13748.6316102,0.00031978,2]
[322127737,1712823043235,-36346.8385148,0.00031978,2]
[322127739,1712823043244,-2238.388819,0.00031978,2]
[322127742,1712823043253,-37938.6857555,0.00031978,2]
[322127744,1712823043263,-150.0,0.00031982,2]
[322127746,1712823043272,-417.92,0.00031982,2]
[322127748,1712823043281,-100000.0,0.00032,2]
[322127750,1712823043290,-332.11656254,0.00032,4]
[322127752,1712823043300,-1500.0,0.00032,3]
[322127753,1712823043309,-400.0,0.00032,2]
[322127754,1712823043318,-1095.17030727,0.00032,2]
[322127755,1712823043328,-1000.0,0.00032,2]
[322127756,1712823043337,-612.90661396,0.00032,2]
[322127757,1712823043345,-536.69,0.00032,2]
[322127759,1712823043355,-155.0,0.00032,4]
[322127760,1712823043365,-206.60414812,0.00032,4]
[322127761,1712823043374,-157.86310301,0.00032,2]
[322127762,1712823043385,-270.34664743,0.00032086,7]
[322127763,1712823043393,-1110.50826724,0.00032125,4]
[322127764,1712823043403,-151.38857113,0.00032167,2]
[322127765,1712823043412,-5000.0,0.000322,4]
[322127766,1712823043421,-888.4512,0.000322,2]
[322127767,1712823043430,-270.34664743,0.00032282,7]
[322127768,1712823043439,-284.77502225,0.00032292,7]
[322127769,1712823043449,-1362.98,0.000323,2]
[322127770,1712823043458,-911.44,0.000323,2]
[322127771,1712823043468,-1380.0,0.000323,2]
[322127772,1712823043477,-25644.00129825,0.00032363,2]
[322127773,1712823043486,-165.96780529,0.00032374,7]
[322127774,1712823043496,-3178.514718,0.00032378,2]
[322127775,1712823043505,-2507.7854249,0.00032378,2]
[322127776,1712823043514,-1837.0561318,0.00032378,2]
[322127777,1712823043523,-11369.4471866,0.00032378,2]
[322127778,1712823043532,-8990.2627629,0.00032378,2]
[322127779,1712823043541,-6611.0783393,0.00032378,2]
[322127780,1712823043551,-30057.0611395,0.00032378,2]
[322127781,1712823043561,-23767.2837642,0.00032378,2]
[322127782,1712823043570,-17477.506389,0.00032378,2]
[322127783,1712823043579,-1811.9673242,0.00032378,2]
[322127784,1712823043588,-1385.5458295,0.00032378,2]
[322127785,1712823043598,-959.1243347,0.00032378,2]
[322127786,1712823043608,-30750.9973186,0.00032378,2]
[322127787,1712823043617,-23563.3088817,0.00032378,2]
[322127788,1712823043629,-16375.6204448,0.00032378,2]
[322127789,1712823043639,-6111.7878761,0.000324,2]
[322127790,1712823044218,-435.199875,0.000324,2]
[322127791,1712823044251,-839.80598063,0.000324,2]
[322127792,1712823044267,-274.30609247,0.000324,2]
[322127793,1712823044280,-682.57127774,0.000324,2]
[322127794,1712823044294,-738.06322362,0.000324,2]
[322127795,1712823044307,-7145.57261996,0.000324,2]
[322127796,1712823044323,-286.6271417,0.000324,2]
[322127797,1712823044336,-35250.00000001,0.000324,2]
[322127798,1712823044357,-1061.309564,0.00021827,2]
[322127799,1712823045667,-319.39308481,0.00020898,2]
[322127800,1712823045678,-2586.38644169,0.00020898,2]
[322127801,1712823045691,-53.30525831,0.00020898,2]
[322127802,1712823045703,-1689.690436,0.00021827,2]
[322127803,1712823045714,-1683.77738415,0.000324,2]
[322127804,1712823045744,-433391.16906218,0.000324,2]
[322127805,1712823045755,-151.0,0.000324,7]
[322127806,1712823045765,-366.172693,0.000324,7]
[322127807,1712823045776,-366.172693,0.000324,7]
[322127808,1712823045787,-157.041114,0.00032448,12]
[322127809,1712823045797,-4506.8584856,0.000325,2]
[322127810,1712823045806,-310.0,0.000325,6]
[322127811,1712823045815,-4408.98,0.00032603,2]
[322127812,1712823045824,-152.00108288,0.00032608,7]
[322127813,1712823045834,-4000.0,0.0003265,3]
[322127814,1712823045844,-150.0,0.00032654,2]
[322127815,1712823045854,-150.0,0.00032654,2]
[322127816,1712823045864,-150.0,0.00032656,2]
[322127817,1712823045875,-152.00108288,0.00032658,7]
[322127818,1712823045890,-150.0,0.00032665,2]
[322127819,1712823045901,-150.0,0.00032668,2]
[322127820,1712823045912,-150.0,0.00032687,2]
[322127821,1712823045923,-150.0,0.00032694,2]
[322127822,1712823045933,-150.0,0.00032698,2]
[322127823,1712823045943,-241.45335351,0.00032722,2]
[322127824,1712823045952,-150.0,0.00032727,2]
[322127825,1712823045963,-154.4312507,0.00032735,7]
[322127826,1712823045972,-150.0,0.00032753,2]
[322127827,1712823045981,-2046.19247732,0.00032763,14]
[322127828,1712823045991,-150.0,0.00032778,2]
[322127829,1712823046001,-150.0,0.00032786,2]
[322127830,1712823046010,-624.0,0.00032794,2]
[322127831,1712823046020,-1237.0,0.00032799,30]
[322127832,1712823046029,-152.00108288,0.00032809,7]
[322127833,1712823046038,-1448.65395105,0.0003281,2]
[322127834,1712823046048,-150.0,0.00032835,2]
[322127835,1712823046057,-150.0,0.00032838,2]
[322127836,1712823046066,-150.0,0.00032839,2]
[322127837,1712823046075,-150.0,0.00032841,2]
[322127838,1712823046084,-150.0,0.00032844,2]
[322127839,1712823046094,-150.0,0.00032855,2]
[322127840,1712823046103,-150.0,0.00032865,2]
[322127841,1712823046112,-1296.1801744,0.00032874,2]
[322127842,1712823046121,-150.0,0.00032874,2]
[322127843,1712823046132,-151.0,0.00032877,7]
[322127845,1712823046142,-150.0,0.00032877,2]
[322127847,1712823046151,-150.0,0.00032884,2]
[322127849,1712823046160,-150.0,0.00032895,2]
[322127851,1712823046169,-150.0,0.00032895,2]
[322127853,1712823046179,-150.0,0.00032898,2]
[322127854,1712823046189,-150.0,0.000329,2]
[322127856,1712823046198,-150.0,0.000329,2]
[322127858,1712823046207,-150.0,0.000329,2]
[322127860,1712823046216,-150.0,0.000329,2]
[322127862,1712823046226,-150.0,0.000329,2]
[322127864,1712823046236,-150.0,0.000329,2]
[322127866,1712823046246,-150.0,0.000329,2]
[322127868,1712823046255,-394.226192,0.000329,6]
[322127870,1712823046265,-1000.0,0.000329,11]
[322127872,1712823046274,-155.0,0.00032916,2]
[322127874,1712823046283,-2290.09501321,0.00032916,4]
[322127876,1712823046292,-2968.27587146,0.00032916,4]
[322127878,1712823046301,-224.42298719,0.00032916,4]
[322127880,1712823046309,-448.72870179,0.00032916,7]
[322127882,1712823046318,-594.81513784,0.00032916,2]
[322127884,1712823046328,-2000.0,0.00032916,2]
[322127886,1712823046337,-200.0,0.00032916,2]
[322127888,1712823046346,-907.22,0.00032922,2]
[322127889,1712823046355,-907.22,0.00032922,2]
[322127890,1712823046364,-821.47,0.00032922,2]
[322127891,1712823046373,-427.99,0.00032922,2]
[322127892,1712823046386,-100000.0,0.00033,3]
[322127893,1712823046395,-1000.0,0.00033,30]
[322127894,1712823046404,-1000.0,0.00033,30]
[322127896,1712823046414,-1000.0,0.00033,30]
[322127898,1712823046423,-1000.0,0.00033,30]
[322127900,1712823046432,-1000.0,0.00033,30]
[322127902,1712823046442,-1000.0,0.00033,30]
[322127904,1712823046451,-1000.0,0.00033,30]
[322127906,1712823046460,-1000.0,0.00033,30]
[322127908,1712823046471,-1000.0,0.00033,30]
[322127910,1712823046481,-1000.0,0.00033,30]
[322127912,1712823046490,-1000.0,0.00033,30]
[322127914,1712823046499,-1000.0,0.00033,30]
[322127915,1712823046508,-1000.0,0.00033,30]
[322127917,1712823046516,-1000.0,0.00033,30]
[322127919,1712823046525,-1000.0,0.00033,30]
[322127921,1712823046534,-1000.0,0.00033,30]
[322127923,1712823046543,-1000.0,0.00033,30]
[322127924,1712823046552,-1000.0,0.00033,30]
[322127925,1712823046562,-1000.0,0.00033,30]
[322127926,1712823046571,-1000.0,0.00033,30]
[322127928,1712823046580,-1000.0,0.00033,30]
[322127929,1712823046589,-1000.0,0.00033,30]
[322127930,1712823046598,-1000.0,0.00033,30]
[322127931,1712823046608,-1000.0,0.00033,30]
[322127932,1712823046617,-1000.0,0.00033,30]
[322127933,1712823046626,-1000.0,0.00033,30]
[322127934,1712823046638,-1000.0,0.00033,30]
[322127935,1712823046647,-1000.0,0.00033,30]
[322127936,1712823046656,-1000.0,0.00033,30]
[322127937,1712823046665,-1000.0,0.00033,30]
[322127938,1712823046674,-622.19442607,0.00033,30]
[322127939,1712823046683,-200.0,0.00033,15]
[322127940,1712823046692,-550.0,0.00033,3]
[322127941,1712823046701,-284.77502225,0.00033005,7]
[322127942,1712823046710,-151.38857113,0.00033034,2]
[322127943,1712823046720,-270.34664743,0.00033081,7]
[322127944,1712823046729,-224.9147749,0.00033118,7]
[322127945,1712823046739,-674.85171412,0.00033125,10]
[322127946,1712823046748,-56231.64785698,0.00033125,10]
[322127947,1712823046758,-2141.16530602,0.00033125,10]
[322127948,1712823046768,-48691.9725964,0.00033125,2]
[322127949,1712823046777,-827.22950323,0.00033125,10]
[322127950,1712823046786,-500.0,0.00033125,10]
[322127951,1712823046796,-1119.51642352,0.00033125,10]
[322127952,1712823046804,-1377.47650983,0.00033125,10]
[322127953,1712823046813,-741.1924214,0.00033125,10]
[322127954,1712823046823,-23082.80114468,0.00033125,2]
[322127955,1712823046834,-155.0,0.00033125,2]
[322127956,1712823046844,-228.53876024,0.00033125,2]
[322127958,1712823046853,-402.46013465,0.00033125,2]
[322127959,1712823046862,-5099.26236704,0.00033125,2]
[322127960,1712823046871,-155.25238874,0.00033125,2]
[322127961,1712823046883,-422.51574207,0.00033125,2]
[322127962,1712823046892,-154.0,0.00033125,2]
[322127963,1712823046901,-206.73881,0.00033125,2]
[322127964,1712823046911,-13654.85470623,0.00033125,5]
[322127965,1712823046922,-564.0,0.00033125,4]
[322127966,1712823046932,-8643.06,0.00033125,2]
[322127967,1712823046941,-8643.06,0.00033125,2]
[322127968,1712823046950,-8643.06,0.00033125,2]
[322127969,1712823046960,-8643.06,0.00033125,2]
[322127970,1712823046970,-8643.06,0.00033125,2]
[322127971,1712823046980,-8643.06,0.00033125,2]
[322127972,1712823046989,-8643.06,0.00033125,2]
[322127973,1712823046998,-8643.06,0.00033125,2]
[322127974,1712823047008,-8643.06,0.00033125,2]
[322127975,1712823047018,-8643.06,0.00033125,2]
[322127976,1712823047027,-8643.06,0.00033125,2]
[322127977,1712823047037,-8643.06,0.00033125,2]
[322127978,1712823047046,-8643.06,0.00033125,2]
[322127979,1712823047056,-8643.06,0.00033125,2]
[322127980,1712823047065,-8643.06,0.00033125,2]
[322127981,1712823047075,-8643.06,0.00033125,2]
[322127982,1712823047084,-8643.06,0.00033125,2]
[322127983,1712823047094,-8643.06,0.00033125,2]
[322127984,1712823047103,-8643.06,0.00033125,2]
[322127985,1712823047113,-8643.06,0.00033125,2]
[322127986,1712823047122,-8643.06,0.00033125,2]
[322127987,1712823047135,-8643.06,0.00033125,2]
[322127988,1712823047143,-8643.06,0.00033125,2]
[322127989,1712823047152,-8643.14355828,0.00033125,2]
[322127990,1712823047161,-309.14,0.00033165,2]
[322127991,1712823047171,-286.54,0.00033165,2]
[322127992,1712823047180,-2000.0,0.00033245,2]
[322127993,1712823047190,-200.0,0.00033245,2]
[322127994,1712823047199,-152.00108288,0.00033275,7]
[322127995,1712823047209,-224.98789302,0.0003335,2]
[322127996,1712823047219,-275.2,0.00033372,2]
[322127997,1712823047229,-166.7821729,0.00033392,7]
[322127998,1712823047239,-157.21377487,0.00033426,7]
[322127999,1712823047249,-150.0,0.0003344,2]
[322128000,1712823047259,-501.11302189,0.0003344,2]
[322128001,1712823047269,-157.041114,0.00033448,13]
[322128002,1712823047280,-171.37637395,0.00033464,7]
[322128003,1712823047291,-284.77502225,0.0003347,7]
[322128004,1712823047301,-420.52,0.000335,2]
[322128005,1712823047311,-420.52,0.000335,2]
[322128006,1712823047321,-420.52,0.000335,2]
[322128007,1712823047331,-420.52,0.000335,2]
[322128008,1712823047342,-420.52,0.000335,2]
[322128009,1712823047351,-420.52,0.000335,2]
[322128010,1712823047361,-420.52,0.000335,2]
[322128011,1712823047372,-420.52,0.000335,2]
[322128012,1712823047383,-420.52,0.000335,2]
[322128013,1712823047393,-420.52,0.000335,2]
[322128014,1712823047402,-420.52,0.000335,2]
[322128015,1712823047412,-420.52,0.000335,2]
[322128016,1712823047423,-420.52,0.000335,2]
[322128017,1712823047433,-420.52,0.000335,2]
[322128018,1712823047444,-420.52,0.000335,2]
[322128019,1712823047453,-420.52,0.000335,2]
[322128020,1712823047463,-420.52,0.000335,2]
[322128021,1712823047473,-420.52,0.000335,2]
[322128022,1712823047483,-420.52,0.000335,2]
[322128023,1712823047494,-420.52,0.000335,2]
[322128024,1712823047503,-200.0,0.00033578,2]
[322128025,1712823047511,-152.0,0.00033599,4]
[322128026,1712823047521,-150.0,0.00033742,2]
[322128027,1712823047530,-270.34664743,0.00033759,7]
[322128028,1712823047539,-911.44,0.000338,2]
[322128029,1712823047549,-151.38857113,0.00033901,2]
[322128030,1712823047558,-100000.0,0.00034,4]
[322128031,1712823047567,-1000.0,0.00034,2]
[322128032,1712823047576,-5079.44511873,0.00034,30]
[322128033,1712823047586,-366.172693,0.00034,7]
[322128034,1712823047595,-366.172693,0.00034,7]
[322128035,1712823047604,-166.91198249,0.00034067,7]
[322128036,1712823047614,-153.45242309,0.00034104,7]
[322128037,1712823047623,-166.91198249,0.00034153,7]
[322128038,1712823047634,-153.45242309,0.00034179,7]
[322128039,1712823047643,-284.77502225,0.00034258,7]
[322128040,1712823047652,-201.43730482,0.00034284,7]
[322128041,1712823047661,-150.76473124,0.00034379,7]
[322128042,1712823047670,-152.00108288,0.00034409,7]
[322128043,1712823047679,-157.041114,0.00034448,14]
[322128044,1712823047688,-170.17733931,0.00034524,7]
[322128045,1712823047697,-150.0,0.00034548,10]
[322128046,1712823047707,-150.0,0.00034607,2]
[322128047,1712823047716,-224.9147749,0.00034629,7]
[322128048,1712823047725,-156.75841592,0.00034632,7]
[322128049,1712823047734,-888.4512,0.000347,2]
[322128050,1712823047744,-270.34664743,0.00034735,7]
[322128051,1712823047753,-1000.0,0.00034748,2]
[322128052,1712823047762,-151.38857113,0.00034768,2]
[322128053,1712823047774,-15272.34149172,0.000348,14]
[322128054,1712823047782,-163.44113224,0.00034842,7]
[322128055,1712823047791,-284.77502225,0.0003492,7]
[322128056,1712823047801,-152.6758148,0.0003493,7]
[322128057,1712823047811,-100000.0,0.00035,15]
[322128058,1712823047821,-227.0306117,0.00035,4]
[322128059,1712823047831,-3000.0,0.00035,2]
[322128060,1712823047841,-600.0,0.00035,3]
[322128061,1712823047851,-174.085466,0.00035,14]
[322128062,1712823047860,-270.34664743,0.00035023,7]
[322128063,1712823047870,-284.77502225,0.00035184,7]
[322128064,1712823047884,-450.52,0.00035288,15]
[322128065,1712823047893,-150.76473124,0.00035328,7]
[322128066,1712823047903,-152.33080863,0.00035408,7]
[322128067,1712823047912,-157.041114,0.00035448,15]
[322128068,1712823047923,-150.0,0.00035472,2]
[322128069,1712823047932,-151.38857113,0.00035634,2]
[322128070,1712823047942,-275.2,0.00035636,2]
[322128071,1712823047952,-604.94,0.000358,2]
[322128072,1712823047963,-160.105609,0.00035827,2]
[322128073,1712823047973,-240.343518,0.00035827,2]
[322128074,1712823047984,-1181.293888,0.00035827,2]
[322128075,1712823047994,-352.998209,0.00035827,2]
[322128076,1712823048003,-8563.948834,0.00035827,2]
[322128077,1712823048012,-156.75841592,0.0003596,7]
[322128078,1712823048021,-100000.0,0.00036,16]
[322128079,1712823048033,-151.0,0.00036,7]
[322128080,1712823048043,-152.6758148,0.00036007,7]
[322128081,1712823048056,-270.34664743,0.00036023,7]
[322128082,1712823048066,-300.9,0.0003606,2]
[322128083,1712823048075,-520.67,0.0003606,2]
[322128084,1712823048085,-188.36,0.0003606,2]
[322128085,1712823048094,-155.67,0.0003606,2]
[322128086,1712823048105,-328.71,0.0003606,2]
[322128087,1712823048116,-394.85,0.0003606,2]
[322128088,1712823048126,-418.05,0.0003606,2]
[322128089,1712823048139,-709.81,0.0003606,2]
[322128090,1712823048149,-151.9,0.0003606,2]
[322128091,1712823048160,-153.44,0.0003606,2]
[322128092,1712823048170,-335.95,0.0003606,2]
[322128093,1712823048181,-520.67,0.0003606,2]
[322128094,1712823048192,-418.05,0.0003606,2]
[322128095,1712823048202,-150.0,0.0003606,2]
[322128096,1712823048213,-520.67,0.0003606,2]
[322128097,1712823048222,-150.0,0.0003606,2]
[322128098,1712823048232,-312.79,0.0003606,2]
[322128099,1712823048242,-151.0,0.00036275,7]
[322128100,1712823048252,-160.105609,0.00036275,2]
[322128101,1712823048263,-1181.293888,0.00036275,2]
[322128102,1712823048273,-352.998209,0.00036275,2]
[322128103,1712823048284,-8563.948834,0.00036275,2]
[322128104,1712823048293,-150.76473124,0.00036292,7]
[322128105,1712823048302,-150.0,0.00036337,2]
[322128106,1712823048311,-224.9147749,0.00036389,7]
[322128107,1712823048320,-157.041114,0.00036448,16]
[322128108,1712823048330,-911.43,0.000365,2]
[322128109,1712823048340,-151.38857113,0.00036501,2]
[322128110,1712823048350,-155.0000122,0.00036594,7]
[322128111,1712823048360,-160.105609,0.00036723,2]
[322128112,1712823048371,-1181.293888,0.00036723,2]
[322128113,1712823048382,-352.998209,0.00036723,2]
[322128114,1712823048393,-8563.948834,0.00036723,2]
[322128115,1712823048403,-151.46810088,0.00036727,7]
[322128116,1712823048414,-151.21284683,0.00036781,2]
[322128117,1712823048425,-153.94987676,0.00036887,7]
[322128118,1712823048436,-284.77502225,0.00036939,7]
[322128119,1712823048446,-100000.0,0.00037,17]
[322128120,1712823048456,-650.0,0.00037,3]
[322128121,1712823048465,-166.91198249,0.00037078,7]
[322128122,1712823048475,-500.0,0.00037083,3]
[322128123,1712823048485,-284.77502225,0.00037099,7]
[322128124,1712823048495,-270.34664743,0.00037169,7]
[322128125,1712823048504,-160.105609,0.00037171,2]
[322128126,1712823048514,-1181.293888,0.00037171,2]
[322128127,1712823048526,-352.998209,0.00037171,2]
[322128128,1712823048537,-8563.948834,0.00037171,2]
[322128129,1712823048547,-224.9147749,0.00037198,7]
[322128130,1712823048557,-888.4512,0.000372,2]
[322128131,1712823048567,-58000.0,0.00037201,3]
[322128132,1712823048577,-150.0,0.00037203,2]
[322128133,1712823048588,-152.33080863,0.00037208,7]
[322128134,1712823048598,-270.34664743,0.00037278,7]
[322128135,1712823048608,-151.38857113,0.00037368,2]
[322128136,1712823048619,-157.041114,0.00037448,17]
[322128137,1712823048629,-911.43,0.000375,2]
[322128138,1712823048641,-152.00108288,0.00037581,7]
[322128139,1712823048652,-5800.0,0.00037597,2]
[322128140,1712823048662,-160.105609,0.00037619,2]
[322128141,1712823048672,-1181.293888,0.00037619,2]
[322128142,1712823048682,-352.998209,0.00037619,2]
[322128143,1712823048692,-8563.948834,0.00037619,2]
[322128144,1712823048701,-166.91198249,0.00037674,7]
[322128145,1712823048711,-4518.27,0.00037685,10]
[322128146,1712823048721,-3765.23,0.00037685,10]
[322128147,1712823048731,-874.94,0.00037695,2]
[322128148,1712823048740,-418.05,0.00037695,2]
[322128149,1712823048750,-246.85,0.00037695,2]
[322128150,1712823048759,-319.81,0.00037695,2]
[322128151,1712823048769,-150.0,0.00037695,2]
[322128152,1712823048779,-349.48,0.00037695,2]
[322128153,1712823048789,-150.0,0.00037695,2]
[322128154,1712823048798,-150.0,0.00037695,2]
[322128155,1712823048808,-162.32,0.00037695,2]
[322128156,1712823048818,-418.05,0.00037695,2]
[322128157,1712823049051,-162.32,0.00037695,2]
[322128158,1712823049061,-349.48,0.00037695,2]
[322128159,1712823049070,-150.0,0.00037695,2]
[322128160,1712823049079,-192.21,0.00037695,2]
[322128161,1712823049088,-162.32,0.00037695,2]
[322128162,1712823049098,-150.0,0.00037695,2]
[322128163,1712823049108,-349.48,0.00037695,2]
[322128164,1712823049117,-161.91,0.00037695,2]
[322128165,1712823049126,-349.48,0.00037695,2]
[322128166,1712823049140,-154.35,0.00037695,2]
[322128167,1712823049150,-152.0,0.00037707,5]
[322128168,1712823049160,-154.42750509,0.00037707,5]
[322128169,1712823049169,-406.38,0.00037712,2]
[322128170,1712823049178,-406.38,0.00037712,2]
[322128171,1712823049187,-406.38,0.00037712,2]
[322128172,1712823049196,-406.38,0.00037712,2]
[322128173,1712823049205,-406.38,0.00037712,2]
[322128174,1712823049215,-406.38,0.00037712,2]
[322128175,1712823049225,-406.38,0.00037712,2]
[322128176,1712823049234,-406.38,0.00037712,2]
[322128177,1712823049243,-406.38,0.00037712,2]
[322128178,1712823049252,-406.38,0.00037712,2]